[Event "CCC-IM 2022"]
[Site "Ballerup"]
[Date "2022.05.26"]
[Round "2.1"]
[White "Seegert, Kristian"]
[Black "Jacobsen, Mikkel Manosri"]
[Result "0-1"]
[ECO "B29"]
[WhiteElo "2209"]
[BlackElo "2251"]
[Annotator "TA"]
[PlyCount "108"]
[EventDate "2022.05.25"]
[EventType "tourn"]
[EventCountry "DEN"]
[SourceTitle "playchess.com"]
[Source "ChessBase"]
[SourceQuality "1"]
[TimeControl "5400+30"]

{[%evp 9,108,16,25,8,13,15,15,3,12,19,24,18,24,4,40,0,22,20,44,28,49,0,23,-28,0,-25,0,-45,-8,-91,-86,-88,-18,-93,-22,-82,-15,-27,-18,-50,-39,-44,-1,-6,-7,-7,-7,-7,-7,-7,-8,0,0,0,0,-33,0,0,0,0,0,-131,0,0,0,0,0,0,0,0,0,-47,-47,-206,-48,-49,0,0,0,-336,-329,-448,-434,-302,0,-2216,-2148,-1583,-1576,-2509,-2268,-2162,-2078,-1928,-1914,-1737,-1116,-29946,-29947,-12831,-7543]} 1. e4 {[%emt 0:00:05]} c5 {[%emt 0:00:03]} 2. Nf3 {[%emt 0:00:34]} Nf6 {[%emt 0:00:05]} 3. Nc3 {[%emt 0:00:18]} d5 {[%emt 0:00:04]} 4. exd5 {[%emt 0:03:54]} Nxd5 {[%emt 0:00:03]} 5. g3 {[%emt 0:00:23]} Nc6 {[%emt 0:01:10]} 6. Bg2 {[%emt 0:00:28] B29: Sicilian: 2 Nf3 Nf6 (Nimzowitsch Variation).} Bg4 {[%emt 0:01:58]} 7. h3 {[%emt 0:01:54]} Bh5 {[%emt 0:00:54]} 8. O-O {[%emt 0:00:21] The position is equal.} e6 {[%emt 0:01:12]} 9. Re1 {[%emt 0:05:10]} Nf6 {[%emt 0:09:48]} 10. d3 {[%emt 0:03:29]} Be7 {[%emt 0:00:37]} 11. Bf4 {[%emt 0:03:13]} O-O {[%emt 0:06:36] [#]} (11... Bxf3 $5 12. Qxf3 (12. Bxf3 Qb6 $14) 12... O-O $14) 12. Qd2 $146 {[%emt 0:01:59]} (12. g4 $5 {[%cal Rg4h5]} Bg6 13. Ne5 $14) ({Predecessor:} 12. g4 Bg6 13. Nh4 Nd5 14. Nxg6 hxg6 15. Nxd5 exd5 16. Qf3 d4 17. a3 Rc8 18. Re2 {1-0 (44) Ribeiro,G (1563)-De Souza,E (1706) Osasco 2022}) 12... Rc8 {[%emt 0:02:10]} (12... Bxf3 $5 13. Bxf3 Qb6 $11) 13. Ne5 {[%emt 0:01:42]} Nd4 {[%emt 0:05:18]} 14. g4 {[%emt 0:07:14]} Bg6 {[%emt 0:00:19]} 15. Nxg6 {[%emt 0:20:00]} (15. a4 $14) 15... fxg6 {[%emt 0:12:04]} 16. Kh1 {[%emt 0:11:22]} (16. Bxb7 Nd5 17. Bxd5 (17. Bxc8 $2 Nxf4 18. Re3 Qxc8 $19) 17... exd5 $17) (16. Ne4 $142) 16... Bd6 {[%emt 0:05:23]} (16... Nd5 17. Nxd5 exd5 18. c3 $16 (18. Re5 Bd6 $11)) (16... h5 $5 {[%cal Rh5g4]}) 17. Bg3 {[%emt 0:02:02]} (17. Bxb7 $2 Bxf4 18. Qxf4 Rb8 $19) 17... Qc7 {[%emt 0:05:36]} 18. Re3 {[%emt 0:01:01]} Bf4 {[%emt 0:02:06]} 19. Ne2 {[%emt 0:02:00]} (19. Bxf4 $11 Qxf4 20. Rd1 (20. Bxb7 $2 Rb8 $17)) 19... e5 $17 {[%emt 0:03:21] Black is more active.} (19... Bxe3 $2 20. fxe3 Qb6 21. exd4 $18) 20. Nc3 {[%emt 0:09:11]} Rfd8 {[%emt 0:09:09]} (20... Bxe3 $17 21. fxe3 Nc6) 21. Rae1 {[%emt 0:05:28]} (21. Bxf4 $1 $11 {remains equal.} exf4 22. Ree1) 21... Rd7 {[%emt 0:03:53]} (21... Bxe3 $17 22. fxe3 Nc6) 22. Qd1 {[%emt 0:06:50]} Qb6 {[%emt 0:09:01]} (22... Bxe3 $17 23. fxe3 Ne6) 23. Bxf4 {[%emt 0:05:20]} exf4 {[%emt 0:00:07]} 24. Re5 {[%emt 0:00:09]} Qxb2 {[%emt 0:03:26]} 25. Nd5 {[%emt 0:00:29] Threatens to win with Ne7+.} Qxc2 {[%emt 0:01:26]} (25... Nxc2 $2 26. Qe2 Qd4 27. Ne7+ Kf7 28. Nxc8 $18 (28. Qxc2 Re8 $18)) 26. Ne7+ $1 {[%emt 0:00:49] [#]} Rxe7 $1 {[%emt 0:00:49]} 27. Rxe7 {[%emt 0:00:26] Hoping for Qxc2.} Qxf2 {[%emt 0:06:11] White must now prevent ...f3.} 28. Rf1 {[%emt 0:01:29]} Qg3 {[%emt 0:00:52]} 29. Qe1 $1 {[%emt 0:00:53]} Qxe1 {[%emt 0:00:21]} (29... Qxd3 $2 30. Rxf4 Rf8 31. g5 $18) 30. Rexe1 {[%emt 0:01:43]} g5 {[%emt 0:00:05] aiming for ...Rc7.} 31. Bxb7 {[%emt 0:00:25]} Rc7 {[%emt 0:00:08]} 32. Ba6 {[%emt 0:01:04]} Kf7 {[%emt 0:03:32]} (32... h5 $5 {[%cal Rh5g4]}) 33. Re5 {[%emt 0:01:09]} Kg6 {[%emt 0:00:02]} 34. Rc1 {[%emt 0:00:53]} Rc6 {[%emt 0:00:02]} 35. Bc4 {[%emt 0:01:54]} (35. Bb7 $11 Rb6 36. Ba8) 35... Rb6 {[%emt 0:00:41]} ({Black should play} 35... h5 $1 $17 {[%cal Rh5g4]} 36. gxh5+ Kxh5) 36. Bb3 $1 $11 {[%emt 0:02:11]} Nxb3 {[%emt 0:00:50]} 37. axb3 {[%emt 0:00:05]} Rxb3 {[%emt 0:00:05]} 38. Rcxc5 {[%emt 0:00:11][%mdl 4096] Endgame KRR-KRN} h6 {[%emt 0:00:35][%cal Bh7h6,Bh6h5,Bh5g4][%mdl 32]} 39. Re7 {[%emt 0:01:30]} Rxd3 {[%emt 0:00:02]} 40. Kg2 {[%emt 0:00:28]} (40. Kh2 $1 $11) 40... h5 $15 {[%emt 0:03:09]} 41. Ree5 $2 {[%emt 0:00:29]} (41. gxh5+ Kxh5 42. Rce5 Rg3+ 43. Kf1 Kg6 $17) (41. Rcc7 $1 $15) 41... Rg3+ $2 {[%emt 0:01:00]} ({Black should try} 41... hxg4 $19 42. hxg4 (42. Rxg5+ $2 Kh6 $19) 42... Rg3+ 43. Kf1 Rxg4) 42. Kf1 $1 {[%emt 0:00:34]} Rxh3 {[%emt 0:06:05]} (42... hxg4 43. hxg4 Rxg4 44. Ra5 $17) (42... Kh6 $15 43. gxh5 Kxh5) 43. Rxg5+ $11 {[%emt 0:00:07]} Kh6 {[%emt 0:00:05]} 44. Rgf5 $2 {[%emt 0:00:22][%mdl 8192]} (44. gxh5 $11 Rxh5 45. Rxh5+ Nxh5 46. Kf2) 44... Rf3+ $19 {[%emt 0:00:30]} ({Inferior is} 44... hxg4 45. Rxf4 Rh1+ 46. Kg2 $11) ({Worse is} 44... Nxg4 45. Rc6+ g6 46. Rxf4 $15) 45. Kg2 {[%emt 0:00:14] Rxf6+ would kill now.} hxg4 {[%emt 0:00:16] And now ...Rg3+ would win.} 46. Rce5 {[%emt 0:00:46]} Rg3+ $2 {[%emt 0:01:26]} (46... Kh7 $19 {Strongly threatening ...Kh6.} 47. Ra5 Rg3+ 48. Kh2 Rh3+ 49. Kg1 f3 50. Rxa7 Kg6) 47. Kh2 $2 {[%emt 0:00:19][%mdl 8192] [#]} (47. Kf2 $11) 47... Rh3+ $1 {[%emt 0:00:05]} 48. Kg1 {[%emt 0:00:31]} Rh5 {[%emt 0:00:53]} 49. Rxh5+ {[%emt 0:00:34]} Nxh5 {[%emt 0:00:01] KR-KN} 50. Ra5 {[%emt 0:00:12]} g6 {[%emt 0:00:11]} 51. Kf2 {[%emt 0:00:16]} Ng3 {[%emt 0:00:02]} 52. Rxa7 {[%emt 0:00:36]} Ne4+ {[%emt 0:01:14]} 53. Ke2 {[%emt 0:00:19]} f3+ {[%emt 0:01:07][%cal Bf4f3,Bf3f2][%mdl 32]} 54. Ke3 {[%emt 0:00:31] [#]} f2 $1 {[%emt 0:00:15] Weighted Error Value: White=0.66/Black=0.33} 0-1

[Event "CCC-IM 2022"]
[Site "Ballerup"]
[Date "2022.05.26"]
[Round "2.2"]
[White "Ahlander, Bjorn"]
[Black "Nielsen, Thomas Bach"]
[Result "1-0"]
[ECO "A43"]
[WhiteElo "2375"]
[BlackElo "2189"]
[Annotator "TA"]
[PlyCount "73"]
[EventDate "2022.05.25"]
[EventType "tourn"]
[EventCountry "DEN"]
[SourceTitle "playchess.com"]
[Source "ChessBase"]
[SourceQuality "1"]
[TimeControl "5400+30"]

{[%evp 22,73,92,80,104,80,101,95,101,103,132,49,150,91,108,92,81,84,99,103,107,111,152,153,183,70,59,82,94,102,73,77,74,18,12,9,245,243,217,230,252,233,339,336,510,510,468,439,12815,6594,29981,3370,29982,1051]} 1. d4 {[%emt 0:00:03]} Nf6 {[%emt 0:00:07]} 2. c4 {[%emt 0:00:04]} c5 {[%emt 0:00:12]} 3. d5 {[%emt 0:00:06]} d6 {[%emt 0:00:07]} 4. Nc3 {[%emt 0:00:06]} g6 {[%emt 0:00:07]} 5. e4 {[%emt 0:00:28]} Bg7 {[%emt 0:00:14]} 6. Bd3 {[%emt 0:00:30]} O-O {[%emt 0:00:57]} 7. h3 {[%emt 0:00:31]} e6 {[%emt 0:01:04]} 8. Nf3 {[%emt 0:00:20]} exd5 {[%emt 0:02:54]} 9. cxd5 {[%emt 0:00:04]} Na6 {[%emt 0:07:25]} 10. O-O {[%emt 0:00:24]} Nc7 {[%emt 0:00:28]} 11. Re1 $1 {[%emt 0:00:39] 11.Re1 is better than 11.a4.} a6 {[%emt 0:02:02]} 12. a4 {[%emt 0:00:02]} b6 {[%emt 0:01:02] A70: Modern Benoni: 6 e4 g6 7 Nf3.} 13. Rb1 {[%emt 0:03:47]} Rb8 {[%emt 0:05:49]} 14. b4 {[%emt 0:03:55]} Nd7 {[%emt 0:01:41] White is better.} 15. Bg5 {[%emt 0:05:50] [#]} Bf6 $146 {[%emt 0:00:43]} ({Predecessor:} 15... Qe8 16. Qd2 b5 17. Bf4 Qe7 18. axb5 axb5 19. Bc2 cxb4 20. Na2 Na6 21. Nd4 Bb7 22. Nxb4 Nxb4 23. Rxb4 {1-0 (37) Dobosz,H (2415)-Schmadlowski,C Cuxhaven 1992}) 16. Bd2 {[%emt 0:05:33] White is much more active.} (16. Bxf6 $16 Qxf6 17. e5 dxe5 18. Ne4) 16... Ne5 {[%emt 0:11:05]} ({Better is} 16... cxb4 $14 17. Rxb4 Nc5) 17. Bf1 {[%emt 0:01:51]} (17. Nxe5 $142 {aiming for Nc6.} Bxe5 18. bxc5 dxc5 19. f4 Bd4+ 20. Kh2) 17... Bd7 {[%emt 0:06:26]} 18. Nh2 {[%emt 0:01:16]} cxb4 {[%emt 0:05:42]} 19. Rxb4 {[%emt 0:00:27]} b5 {[%emt 0:00:08]} 20. f4 {[%emt 0:03:58]} Nc4 {[%emt 0:01:29]} 21. Bxc4 {[%emt 0:02:31] Bd3 is the strong threat.} bxc4 {[%emt 0:00:03]} 22. Rxc4 {[%emt 0:01:44]} Na8 {[%emt 0:01:46][%cal Bc7a8,Ba8b6,Bb6c4][%mdl 32] [#]} 23. Nf3 {[%emt 0:05:59]} (23. e5 $1 $18 {[%cal Re5f6]} Nb6 24. Rd4) 23... Nb6 $14 {[%emt 0:00:45]} 24. Rb4 {[%emt 0:00:47]} a5 {[%emt 0:03:39]} 25. Rb1 {[%emt 0:01:27]} Nc4 {[%emt 0:00:29]} 26. e5 {[%emt 0:01:50]} Rxb1 {[%emt 0:03:38]} 27. Qxb1 {[%emt 0:00:03]} (27. Nxb1 $16 Be7 28. Bc3) 27... dxe5 {[%emt 0:02:23]} 28. fxe5 {[%emt 0:00:04]} Bf5 $2 {[%emt 0:01:41] This costs Black the game.} (28... Nxd2 $11 {and Black stays safe.} 29. Nxd2 Qc7) 29. Qa2 $18 {[%emt 0:02:09]} Nxd2 {[%emt 0:03:23]} 30. Qxd2 {[%emt 0:00:03]} Bg7 {[%emt 0:00:19]} 31. Kh1 {[%emt 0:07:26]} Re8 {[%emt 0:05:50]} (31... Qb6 {was necessary.} 32. Nb5 Bc8) 32. d6 {[%emt 0:02:42]} f6 {[%emt 0:08:28]} (32... Bd7 $142 33. Nd5 h6) 33. Nd5 {[%emt 0:05:51]} fxe5 {[%emt 0:00:26]} 34. Ne7+ {[%emt 0:01:06] Pair of Knights!} (34. Nc7 Rf8 35. Qd5+ Kh8 36. Nxe5 Qf6 $18) 34... Kh8 {[%emt 0:06:03]} (34... Rxe7 $142 35. dxe7 Qxe7 36. Nxe5 Qb7 37. Qd8+ Bf8) 35. Nxe5 {[%emt 0:01:00][%cal Re5f7]} Rf8 {[%emt 0:06:05] Inhibits Nf7+.} 36. Qd5 {[%emt 0:01:00][%cal Od5g8] Threatening mate with Qg8+!} Qe8 {[%emt 0:02:18] [#]} 37. d7 $1 {[%emt 0:01:56] Weighted Error Value: White=0.19 (very precise) /Black=0.74} 1-0

[Event "CCC-IM 2022"]
[Site "Ballerup"]
[Date "2022.05.26"]
[Round "2.3"]
[White "Casper Yukun Liu"]
[Black "Kistrup, Nicolai"]
[Result "0-1"]
[ECO "C58"]
[WhiteElo "2218"]
[BlackElo "2306"]
[Annotator "TA"]
[PlyCount "70"]
[EventDate "2022.05.25"]
[EventType "tourn"]
[EventCountry "DEN"]
[SourceTitle "playchess.com"]
[Source "ChessBase"]
[SourceQuality "1"]
[TimeControl "5400+30"]

{[%evp 14,70,39,40,37,27,31,31,31,26,25,24,18,16,21,15,15,16,14,16,14,16,1,8,14,14,16,-81,15,13,31,0,0,0,0,0,86,79,67,-144,-142,-112,-87,-195,-184,-416,-414,-1504,-1484,-1312,-897,-1117,-1064,-1080,-1063,-1014,-974,-902,-634]} 1. e4 {[%emt 0:00:04]} e5 {[%emt 0:00:11]} 2. Nf3 {[%emt 0:00:06]} Nc6 {[%emt 0:00:18]} 3. Bc4 {[%emt 0:00:01]} Nf6 {[%emt 0:00:09]} 4. Ng5 {[%emt 0:00:07]} d5 {[%emt 0:00:04]} 5. exd5 {[%emt 0:00:08]} Na5 {[%emt 0:00:05]} 6. Bb5+ {[%emt 0:00:06]} c6 {[%emt 0:00:06]} 7. dxc6 {[%emt 0:00:04]} bxc6 {[%emt 0:00:05]} 8. Bd3 {[%emt 0:00:10] now scores much better than the old 8.Be2.} Nd5 {[%emt 0:00:42] C58: Two Knights: 4 Ng5 d5 5 exd5 Na5 sidelines.} 9. Nf3 {[%emt 0:01:49]} (9. Qh5 g6 10. Nxf7 gxh5 $17) 9... Bd6 {[%emt 0:00:14]} 10. O-O {[%emt 0:00:09]} O-O {[%emt 0:00:13] White is slightly better.} 11. Re1 {[%emt 0:01:20]} f5 {[%emt 0:00:16]} 12. Nxe5 {[%emt 0:00:07]} Qf6 $1 {[%emt 0:00:11]} (12... Qh4 13. Bf1 $18) 13. Nf3 {[%emt 0:00:02]} g5 $1 {[%emt 0:00:08]} 14. c4 {[%emt 0:00:11]} Nf4 {[%emt 0:00:17]} 15. Bf1 {[%emt 0:00:01]} g4 {[%emt 0:00:12] [#]} 16. d4 $1 {[%emt 0:00:03] Hoping for Ne5.} gxf3 {[%emt 0:00:09]} 17. Qxf3 {[%emt 0:00:02]} Ne6 $132 {[%emt 0:00:20][%mdl 2048] Black is not holding back} (17... Qxd4 18. Rd1 Nh3+ 19. gxh3 $16) 18. Qc3 {[%emt 0:00:11]} Nxd4 {[%emt 0:00:26] White must now prevent ...Nb7.} 19. c5 {[%emt 0:07:51]} Bc7 {[%emt 0:00:25] [#]} 20. f4 $146 {[%emt 0:01:13]} (20. b4 $11) ({Predecessor:} 20. b4 Rb8 21. bxa5 Be6 22. Bc4 Bxc4 23. Qxc4+ Rf7 24. Nd2 Rd8 25. Bb2 Qh4 26. Bxd4 Rxd4 {1-0 (46) Erigaisi,A (2633)-Gupta,A (2628) Kanpur 2022}) 20... Rb8 {[%emt 0:34:47]} (20... Nb7 $17 {[%cal Ob7c5] Strongly threatening ...Nxc5!} 21. b4 Ne6) 21. b4 $11 {[%emt 0:06:21]} Be6 {[%emt 0:00:38][%cal Of8f7]} 22. Bb2 {[%emt 0:02:58] And now Na3 would win.} Rfd8 $1 {[%emt 0:04:43][%cal Oc7f4,Bf8d8,Bd8d4,Bd4g4,Bg4f4,Bf4e4][%mdl 32]} 23. Na3 $1 {[%emt 0:16:39] Threatens to win with Nc2.} Bxf4 {[%emt 0:16:35][%cal Ob8b4]} 24. Nc2 {[%emt 0:00:16][%cal Rc2d4]} Qh4 {[%emt 0:27:16]} 25. g3 $16 {[%emt 0:01:25]} Bd2 {[%emt 0:02:02] [#]} 26. Qxd4 {[%emt 0:16:30]} (26. gxh4 Bxc3 27. Bxc3 Nxc2 $11) (26. Nxd4 $1 $14 {stays ahead.} Bxc3 27. Bxc3 Qxd4+ 28. Bxd4 Rxd4 29. Rxe6 Rbxb4 30. Rae1) 26... Rxd4 $17 {[%emt 0:02:03]} 27. gxh4 {[%emt 0:00:36]} Rg4+ {[%emt 0:01:11]} 28. Kf2 {[%emt 0:00:40]} (28. Bg2 $17 Bxe1 29. Rxe1) 28... Rf4+ $1 $19 {[%emt 0:03:52][%mdl 1024] Black has strong compensation.} ({Inferior is} 28... Bxe1+ 29. Rxe1 Nc4 30. Bf6 $15 (30. Rxe6 Rf4+ 31. Kg1 Nxb2 $17)) 29. Kg3 $2 {[%emt 0:00:28] [#]} (29. Kg1 {was the only chance.} Bxe1 30. Rxe1) 29... Kf7 $1 {[%emt 0:02:46] Really sharp!} ({Stronger than} 29... Rg4+ 30. Kh3 Bxe1 31. Rxe1 $17) 30. Be2 {[%emt 0:01:40]} (30. Re3 $142 Bxe3 31. Nxe3) 30... Rg8+ {[%emt 0:00:30] Black is clearly winning.} 31. Kh3 {[%emt 0:00:01] [#]} Re4 $1 {[%emt 0:01:24]} 32. Bh5+ {[%emt 0:03:41]} (32. Rg1 Rxe2) 32... Ke7 {[%emt 0:00:18] ( -> ...f4+)} 33. Rg1 {[%emt 0:00:02]} f4+ {[%emt 0:00:21][%cal Bf5f4,Bf4f3][%mdl 32]} 34. Bg4 {[%emt 0:00:01] [#]} Rxg4 $1 {[%emt 0:00:53]} 35. Rxg4 {[%emt 0:00:02] [#]} f3 $1 {[%emt 0:01:34] Weighted Error Value: White=0.57/Black=0.20 (precise)} 0-1

[Event "CCC-IM 2022"]
[Site "Ballerup"]
[Date "2022.05.26"]
[Round "2.4"]
[White "Brynell, Stellan"]
[Black "Sahl, Bjarke"]
[Result "1/2-1/2"]
[ECO "E69"]
[WhiteElo "2401"]
[BlackElo "2312"]
[Annotator "TA"]
[PlyCount "53"]
[EventDate "2022.05.25"]
[EventType "tourn"]
[EventCountry "DEN"]
[SourceTitle "playchess.com"]
[Source "ChessBase"]
[SourceQuality "1"]
[TimeControl "5400+30"]

{[%evp 19,53,35,42,14,14,13,14,20,19,13,22,26,28,36,32,25,72,26,41,40,43,0,0,0,0,0,12,0,54,0,0,-4,47,0,0,0]} 1. d4 {[%emt 0:00:03]} Nf6 {[%emt 0:12:46]} 2. Nf3 {[%emt 0:00:08]} d6 {[%emt 0:05:23]} 3. c4 {[%emt 0:02:13]} g6 {[%emt 0:01:33]} 4. g3 {[%emt 0:00:40]} Bg7 {[%emt 0:00:32]} 5. Bg2 {[%emt 0:00:05]} O-O {[%emt 0:02:01]} 6. Nc3 {[%emt 0:00:34]} Nbd7 {[%emt 0:04:43]} 7. O-O {[%emt 0:00:41]} c6 {[%emt 0:00:35]} 8. e4 {[%emt 0:02:45]} e5 {[%emt 0:00:55]} 9. h3 {[%emt 0:00:13]} Re8 {[%emt 0:02:47]} 10. Re1 {[%emt 0:06:39]} a6 {[%emt 0:04:31]} 11. a4 {[%emt 0:11:51] E69: King's Indian: Fianchetto: 6...Nbd7 7 0-0 e5 8 e4 c6 9 h3.} exd4 {[%emt 0:01:49]} 12. Nxd4 {[%emt 0:00:13]} a5 {[%emt 0:00:12]} 13. Be3 {[%emt 0:00:57]} Nc5 {[%emt 0:03:54]} 14. Qc2 {[%emt 0:01:23]} Qe7 {[%emt 0:01:02]} 15. Rad1 {[%emt 0:06:51]} Nfd7 {[%emt 0:01:12]} ({Less strong is} 15... Nfxe4 16. Bxe4 Nxe4 17. Nxe4 Qxe4 18. Bd2 $16) (15... Ncxe4 $2 16. Bc1 $18) 16. f4 {[%emt 0:03:54]} Na6 {[%emt 0:00:14]} 17. Nb3 {[%emt 0:12:54] [#]} h5 $146 {[%emt 0:00:46]} (17... Ndc5 $11 18. Nxc5 Nxc5) ({Predecessor:} 17... Ndc5 18. Nxc5 Nxc5 19. Bd4 {½-½ (19) Toth,B (2352)-Genzling,A (2390) Baden 2014}) 18. Qd2 {[%emt 0:01:17] White is more active.} ({Much worse is} 18. Nxa5 $6 Ndc5 19. Na2 f5 $11) ({White should play} 18. Qf2 $16) 18... Nac5 $11 {[%emt 0:02:06]} 19. Nxc5 {[%emt 0:00:48]} Nxc5 {[%emt 0:00:12]} 20. Bxc5 {[%emt 0:17:26]} (20. Qf2 $5 {[%cal Re4e5]}) 20... dxc5 {[%emt 0:05:41]} 21. e5 {[%emt 0:00:12]} Bf5 {[%emt 0:04:43]} 22. Qf2 {[%emt 0:04:10]} Red8 {[%emt 0:01:36]} 23. Kh2 {[%emt 0:00:59]} Bd3 {[%emt 0:17:50] [#]} (23... Rxd1 $11 24. Rxd1 Rd8) 24. Bf1 {[%emt 0:02:01]} (24. Nd5 $1 $14 cxd5 25. Rxd3 dxc4 26. Rd5) 24... Bf5 {[%emt 0:02:16]} 25. Bg2 {[%emt 0:03:16]} Bd3 {[%emt 0:00:13] [#]} (25... Rxd1 $11 26. Rxd1 Rd8) 26. Bf1 {[%emt 0:05:00]} (26. Nd5 $1 $14 cxd5 27. Rxd3 dxc4 28. Rd5) 26... Bf5 {[%emt 0:00:09]} 27. Bg2 {[%emt 0:03:40] Weighted Error Value: White=0.17 (very precise) /Black=0.16 (very precise)} 1/2-1/2

[Event "CCC-IM 2022"]
[Site "Ballerup"]
[Date "2022.05.26"]
[Round "2.5"]
[White "Rostgaard, Tobias Valentin"]
[Black "Kenneskog, Theodor"]
[Result "1-0"]
[ECO "D04"]
[WhiteElo "2339"]
[BlackElo "2296"]
[Annotator "TA"]
[PlyCount "133"]
[EventDate "2022.05.25"]
[EventType "tourn"]
[EventCountry "DEN"]
[SourceTitle "playchess.com"]
[Source "ChessBase"]
[SourceQuality "1"]
[TimeControl "5400+30"]

{[%evp 9,133,48,43,37,41,-7,10,0,0,6,7,7,12,16,41,0,54,-27,27,31,30,-41,-43,-23,-39,-82,-79,-87,-72,-72,-36,-32,-22,-42,0,0,0,0,0,-8,-2,-16,-6,-21,0,0,0,0,0,12,13,11,13,0,5,0,16,16,16,16,32,35,72,88,73,73,68,60,113,108,92,26,27,34,24,24,24,24,24,22,51,22,22,16,16,16,16,16,17,0,16,0,0,0,26,26,29962,29964,29964,29965,29963,29964,29966,29967,29966,29968,29968,29967,29967,29968,29966,29967,29968,29969,29965,29968,29973,29973,29977,29978,29976,29979,29979,29980,29980,29979]} 1. d4 {[%emt 0:00:07]} Nf6 {[%emt 0:00:10]} 2. Nf3 {[%emt 0:00:16]} d5 {[%emt 0:00:07]} 3. e3 {[%emt 0:00:19]} c5 {[%emt 0:01:05]} 4. c3 {[%emt 0:00:44]} Nc6 {[%emt 0:05:18]} 5. dxc5 {[%emt 0:02:48]} a5 {[%emt 0:02:04]} 6. Bb5 {[%emt 0:03:08] D05: Colle System with ...e6.} e6 {[%emt 0:03:10]} 7. Nd4 {[%emt 0:01:21]} (7. b4 $14) 7... Bd7 {[%emt 0:08:06]} 8. b4 {[%emt 0:11:56] [#] The position is equal.} axb4 $146 {[%emt 0:07:09]} ({Predecessor:} 8... Qc8 9. Bb2 e5 10. Bxc6 Bxc6 11. Nxc6 Qxc6 12. a3 Be7 13. Nd2 b6 14. cxb6 O-O {1-0 (48) Hartung,J (2191)-Pejic,I (1900) Rijeka 2010}) 9. Bxc6 {[%emt 0:00:27]} bxc6 {[%emt 0:00:20]} 10. cxb4 {[%emt 0:00:06]} Qb8 {[%emt 0:02:29]} 11. a3 {[%emt 0:01:25]} Be7 {[%emt 0:00:38]} 12. Nc3 {[%emt 0:00:57]} h5 {[%emt 0:04:48]} (12... e5 $11 13. Nb3 O-O) 13. b5 {[%emt 0:08:32]} (13. Nf3 $14) 13... cxb5 {[%emt 0:11:28]} (13... Qb7 $142) 14. c6 $11 {[%emt 0:00:15]} Bc8 {[%emt 0:00:29]} 15. Ndxb5 {[%emt 0:01:17]} (15. Rb1 $11) 15... Qb6 $15 {[%emt 0:02:56]} 16. c7 {[%emt 0:06:49]} Ne4 {[%emt 0:02:19]} 17. Qd4 {[%emt 0:14:43]} Qxd4 {[%emt 0:00:06]} 18. exd4 {[%emt 0:00:22]} Nxc3 $1 {[%emt 0:01:10]} 19. Nxc3 {[%emt 0:00:12]} Bb4 {[%emt 0:00:46]} 20. Bd2 {[%emt 0:08:00]} Kd7 {[%emt 0:07:50]} 21. O-O {[%emt 0:02:47]} Bxc3 {[%emt 0:05:07]} 22. Bxc3 {[%emt 0:00:07]} Ba6 {[%emt 0:00:54]} 23. Rfb1 {[%emt 0:00:45]} Kxc7 {[%emt 0:00:51]} 24. Bd2 {[%emt 0:00:27]} Kd7 {[%emt 0:00:51]} 25. Bf4 {[%emt 0:00:24]} Rhc8 {[%emt 0:01:12]} 26. h4 {[%emt 0:00:46]} Ra7 {[%emt 0:00:47]} 27. a4 {[%emt 0:02:48]} Bd3 {[%emt 0:02:36]} 28. Rb3 {[%emt 0:01:52]} Bc2 {[%emt 0:02:14]} 29. Rg3 {[%emt 0:00:16]} g6 {[%emt 0:02:23]} ({Don't do} 29... Rxa4 30. Rxa4 Bxa4 31. Rxg7 $16) 30. a5 {[%emt 0:00:36]} Rc4 {[%emt 0:02:48]} 31. Rga3 {[%emt 0:07:50]} Ra6 {[%emt 0:01:40]} (31... Rxd4 $2 32. Be3 e5 33. a6 $18 (33. Bxd4 exd4 34. Kf1 d3 $18)) 32. Be3 {[%emt 0:01:51]} Rc7 {[%emt 0:03:12]} 33. R1a2 {[%emt 0:00:41]} Bf5 {[%emt 0:01:15]} 34. Rb2 {[%emt 0:00:48]} Rc2 {[%emt 0:03:46]} 35. Rb5 {[%emt 0:00:56]} Rc7 {[%emt 0:00:56]} 36. Bf4 {[%emt 0:00:50]} Rca7 {[%emt 0:01:22]} 37. Bb8 {[%emt 0:01:36]} Ra8 {[%emt 0:00:07]} 38. Rb7+ {[%emt 0:02:24]} Kc8 {[%emt 0:05:24]} (38... Kd8 $14) 39. Rab3 $16 {[%emt 0:00:29] Hoping for Rc7+. 0x0.001259da0ceddp-1022s more active pieces.} Rxa5 {[%emt 0:00:09] [#]} 40. Rc7+ {[%emt 0:01:00]} ({White should play} 40. Rxf7 $1 $16 {[%cal Ob3b7] Strongly threatening Rbb7!} Ra4 (40... Ra1+ 41. Kh2) 41. Rc7+ Kd8 42. Rg7 Ra1+ 43. Kh2) 40... Kd8 $11 {[%emt 0:00:05]} 41. Rxf7 {[%emt 0:00:13] White wants to mate with Rbb7.} Ra1+ {[%emt 0:01:36]} 42. Kh2 {[%emt 0:00:09]} Rb1 $1 {[%emt 0:00:13]} 43. Rxb1 {[%emt 0:06:41]} Bxb1 {[%emt 0:00:02][%mdl 4096] Endgame KRB-KRB} 44. Ba7 {[%emt 0:00:40] Black must now prevent Rf8+.} Ke8 {[%emt 0:01:33] Inhibits Rf8+.} 45. Rb7 {[%emt 0:02:30]} Bf5 {[%emt 0:00:22]} 46. Bc5 {[%emt 0:00:22]} Ra2 {[%emt 0:00:23]} 47. Kg3 {[%emt 0:00:21]} Kd8 {[%emt 0:01:05]} 48. Rg7 {[%emt 0:03:08]} Kc8 {[%emt 0:01:08]} 49. Kf3 {[%emt 0:00:15]} Rc2 {[%emt 0:00:48]} 50. Kf4 {[%emt 0:02:28]} Rxf2+ {[%emt 0:03:26]} 51. Ke5 {[%emt 0:00:08]} Rxg2 {[%emt 0:00:47]} 52. Kd6 {[%emt 0:00:23] Kc6 would kill now.} Ra2 $2 {[%emt 0:00:51][%mdl 8192] [#] Loses the game.} (52... Bc2 $11) 53. Kc6 $1 {[%emt 0:00:44][%cal Rg7g8] White mates.} Ra6+ {[%emt 0:00:12]} 54. Bb6 {[%emt 0:00:17]} Rxb6+ {[%emt 0:00:19]} 55. Kxb6 {[%emt 0:00:06] KR-KB} Kd8 {[%emt 0:00:06]} 56. Kc6 {[%emt 0:00:21]} Ke8 {[%emt 0:00:07]} 57. Kd6 {[%emt 0:00:09]} Kf8 {[%emt 0:00:07]} 58. Ra7 {[%emt 0:00:39]} Ke8 {[%emt 0:02:04]} 59. Ke5 {[%emt 0:00:22]} Kf8 {[%emt 0:00:15]} 60. Kf6 {[%emt 0:00:09][%cal Ra7a8]} Ke8 {[%emt 0:00:03]} 61. Rf7 {[%emt 0:00:48]} Kd8 {[%emt 0:00:15]} 62. Re7 {[%emt 0:00:31]} Bg4 {[%emt 0:01:23]} 63. Rxe6 {[%emt 0:02:59]} Bxe6 {[%emt 0:00:06]} 64. Kxe6 {[%emt 0:00:05]} Ke8 {[%emt 0:02:27] [#]} 65. Kf6 $1 {[%emt 0:01:00]} Kd7 {[%emt 0:01:02]} 66. Kxg6 {[%emt 0:00:13]} Ke6 {[%emt 0:00:16]} 67. Kg5 {[%emt 0:00:08] Weighted Error Value: White=0.13 (very precise) /Black=0.18 (very precise)} 1-0